[Event "7th Fischer Memorial GM 2019"]
[Site "Anogia"]
[Date "2019.09.19"]
[Round "9.2"]
[White "Percivaldi, Martin"]
[Black "Gretarsson, Helgi Ass"]
[Result "1/2-1/2"]
[ECO "A41"]
[WhiteElo "2396"]
[BlackElo "2410"]
[Annotator "ChessBase"]
[PlyCount "61"]
[EventDate "2019.09.11"]
[EventType "tourn"]
[EventCountry "GRE"]
[SourceTitle "playchess.com"]
[Source "ChessBase"]
[SourceQuality "1"]
[TimeControl "40/5400+30:1800+30"]

1. Nf3 {[%emt 0:00:00]} g6 {[%emt 0:01:26]} 2. d4 {[%emt 0:00:17]} Bg7 {[%emt 0:00:07]} 3. g3 {[%emt 0:00:08]} d6 {[%emt 0:00:48]} 4. Bg2 {[%emt 0:00:13]} Nd7 {[%emt 0:01:05]} 5. O-O {[%emt 0:00:31]} e5 {[%emt 0:00:54]} 6. e4 {[%emt 0:00:11]} Ne7 {[%emt 0:00:57]} 7. Nc3 {[%emt 0:00:39]} O-O {[%emt 0:12:33]} 8. Be3 {[%emt 0:02:09]} Re8 {[%emt 0:00:30]} 9. h3 {[%emt 0:03:43]} a6 {[%emt 0:06:47]} 10. a4 {[%emt 0:04:03]} b6 {[%emt 0:03:22]} 11. Qd2 {[%emt 0:05:28]} exd4 {[%emt 0:03:56]} 12. Bxd4 {[%emt 0:02:01]} Ne5 {[%emt 0:00:41]} 13. Nxe5 {[%emt 0:07:40]} dxe5 {[%emt 0:00:32]} 14. Be3 {[%emt 0:00:02]} Qxd2 {[%emt 0:03:23]} 15. Bxd2 {[%emt 0:00:34]} Be6 {[%emt 0:08:43]} 16. Rfd1 {[%emt 0:04:20]} Rad8 {[%emt 0:00:30]} 17. Bf1 {[%emt 0:01:43]} Nc6 {[%emt 0:01:38]} 18. Kg2 {[%emt 0:18:03]} Nd4 {[%emt 0:04:02]} 19. Rac1 {[%emt 0:00:57]} Bc8 {[%emt 0:02:55]} 20. Bg5 {[%emt 0:06:12]} Rd7 {[%emt 0:02:27]} 21. Nd5 {[%emt 0:11:14]} Bb7 {[%emt 0:01:16]} 22. f3 {[%emt 0:00:43]} Bxd5 {[%emt 0:18:45]} 23. exd5 {[%emt 0:00:09]} Rxd5 {[%emt 0:00:17]} 24. c3 {[%emt 0:05:19]} h6 {[%emt 0:00:12]} 25. cxd4 {[%emt 0:00:43]} hxg5 {[%emt 0:00:09]} 26. Rxc7 {[%emt 0:00:12]} b5 {[%emt 0:00:07]} 27. axb5 {[%emt 0:01:02]} axb5 {[%emt 0:00:01]} 28. Rb7 {[%emt 0:00:37]} Rc8 {[%emt 0:03:41]} 29. Rd2 {[%emt 0:01:36]} exd4 {[%emt 0:01:44]} 30. Bxb5 {[%emt 0:08:12]} d3 {[%emt 0:00:12]} 31. Rxd3 {[%emt 0:00:11]} 1/2-1/2

[Event "7th Fischer Memorial GM 2019"]
[Site "Anogia"]
[Date "2019.09.19"]
[Round "9.5"]
[White "Levin, Evgeny A."]
[Black "Kaasen, Tor Fredrik"]
[Result "1/2-1/2"]
[ECO "E55"]
[WhiteElo "2511"]
[BlackElo "2405"]
[Annotator "ChessBase"]
[PlyCount "41"]
[EventDate "2019.09.11"]
[EventType "tourn"]
[EventCountry "GRE"]
[SourceTitle "playchess.com"]
[Source "ChessBase"]
[SourceQuality "1"]
[TimeControl "40/5400+30:1800+30"]

1. d4 {[%emt 0:00:00]} Nf6 {[%emt 0:00:00]} 2. c4 {[%emt 0:00:00]} e6 {[%emt 0:00:00]} 3. Nf3 {[%emt 0:00:00]} d5 {[%emt 0:00:06]} 4. Nc3 {[%emt 0:00:00]} Bb4 {[%emt 0:00:06]} 5. e3 {[%emt 0:00:10]} O-O {[%emt 0:00:14]} 6. Bd3 {[%emt 0:00:03]} dxc4 {[%emt 0:00:31]} 7. Bxc4 {[%emt 0:00:04]} c5 {[%emt 0:00:04]} 8. O-O {[%emt 0:00:37]} cxd4 {[%emt 0:00:31]} 9. exd4 {[%emt 0:00:04]} b6 {[%emt 0:00:06]} 10. Qe2 {[%emt 0:00:40]} Bb7 {[%emt 0:00:44]} 11. Rd1 {[%emt 0:00:05]} Bxc3 {[%emt 0:11:05]} 12. bxc3 {[%emt 0:00:13]} Qc7 {[%emt 0:00:14]} 13. Bd3 {[%emt 0:00:31]} Nbd7 {[%emt 0:00:54]} 14. c4 {[%emt 0:00:33]} Rfe8 {[%emt 0:01:30]} 15. Bb2 {[%emt 0:03:32]} Rad8 {[%emt 0:04:29]} 16. Rac1 {[%emt 0:02:09]} Qf4 {[%emt 0:06:36]} 17. Qe3 {[%emt 0:02:43]} Qxe3 {[%emt 0:12:49]} 18. fxe3 {[%emt 0:01:21]} g6 {[%emt 0:00:37]} 19. c5 {[%emt 0:27:13]} Rc8 {[%emt 0:08:23]} 20. cxb6 {[%emt 0:25:24]} Nxb6 {[%emt 0:00:55]} 21. Rxc8 {[%emt 0:14:51]} 1/2-1/2